{"text_format":"2","workbook":"xlsx","n_sheets":2,"sheets":["Оценка в буквенных значениях","Результат"],"not_rendered":{"charts":0,"images":0,"macros":0,"external_links":0,"defined_names":1,"comments":0,"pivot_tables":0},"unopened":[],"bounds":{"document_bytes":16777216,"sheet_cells":100000,"run_cost":"one","rows_first":2000,"rows_last":500,"rows_between":2000,"halvings":0,"cell_chars":16384,"cell_head_chars":4096},"cells_cut":0,"cells_raw":0,"read":"whole","date_system":"1900"}

{"sheet":"Оценка в буквенных значениях","index":0,"n_rows":73,"n_cols":5,"rows_kept":73,"cut":false,"hidden":false,"merged":[]}
["Тип органа власти","Ведомство","Сайт","Раздел ОД","Группа"]
["Министерство","Министерство Российской Федерации по развитию Дальнего Востока и Арктики","http://minvr.ru/","https://minvr.ru/opendata/","A"]
["Министерство","Министерство финансов Российской Федерации","http://www.minfin.ru/","https://www.minfin.ru/opendata/","A"]
["Министерство","Министерство просвещения Российской Федерации","http://edu.gov.ru","https://opendata.edu.gov.ru/opendata/","A"]
["Министерство","Министерство энергетики Российской Федерации","http://minenergo.gov.ru/","https://minenergo.gov.ru/opendata","A"]
["Министерство","Министерство промышленности и торговли Российской Федерации","http://www.minpromtorg.gov.ru/","http://minpromtorg.gov.ru/opendata/","A"]
["Министерство","Министерство внутренних дел Российской Федерации","http://www.mvd.ru","https://мвд.рф/opendata","A"]
["Министерство","Министерство культуры Российской Федерации","http://www.mkrf.ru/","https://opendata.mkrf.ru/opendata","A"]
["Министерство","Министерство природных ресурсов и экологии Российской Федерации","http://www.mnr.gov.ru/","http://www.mnr.gov.ru/opendata/","A"]
["Служба или агентство","Федеральная налоговая служба","http://www.nalog.ru/","https://www.nalog.ru/opendata/","A"]
["Служба или агентство","Федеральная служба судебных приставов","http://www.fssprus.ru/","http://opendata.fssprus.ru/","A"]
["Служба или агентство","Федеральное агентство воздушного транспорта","http://www.favt.ru/","https://favt.ru/opendata/","A"]
["Служба или агентство","Федеральная служба по надзору в сфере здравоохранения","http://www.roszdravnadzor.ru","https://www.roszdravnadzor.ru/opendata","A"]
["Служба или агентство","Федеральное агентство по управлению государственным имуществом","http://www.rosim.ru/","http://www.rosim.ru/opendata","A"]
["Служба или агентство","Федеральная служба по труду и занятости","http://www.rostrud.ru/","https://www.rostrud.ru/opendata/","A"]
["Служба или агентство","Федеральное агентство лесного хозяйства","http://rosleshoz.gov.ru/","http://rosleshoz.gov.ru/opendata","A"]
["Служба или агентство","Федеральная служба по надзору в сфере связи, информационных технологий и массовых коммуникаций","http://rkn.gov.ru/","https://rkn.gov.ru/opendata/","A"]
["Служба или агентство","Федеральное агентство связи","http://www.rossvyaz.ru/","https://rossvyaz.ru/about/otkrytoe-pravitelstvo/otkrytye-dannee/reestr-otkrytykh-dannykh","A"]
["Служба или агентство","Федеральное агентство по делам молодёжи","http://fadm.gov.ru","https://fadm.gov.ru/opendata","A"]
["Министерство","Министерство строительства и жилищно-коммунального хозяйства Российской Федерации","http://www.minstroyrf.ru/","https://www.minstroyrf.ru/opendata/","B"]
["Министерство","Министерство цифрового развития, связи и массовых коммуникаций Российской Федерации","http://www.minsvyaz.ru/","https://digital.gov.ru/opendata/","B"]
["Министерство","Министерство сельского хозяйства Российской Федерации","http://www.mcx.ru/","http://mcx.ru/activity/open-data/","B"]
["Министерство","Министерство труда и социальной защиты Российской Федерации","http://www.rosmintrud.ru","https://rosmintrud.ru/opendata","B"]
["Министерство","Министерство иностранных дел Российской Федерации","http://www.mid.ru/","https://www.mid.ru/diverse/-/asset_publisher/8bWtTfQKqtaS/content/id/680111","B"]
["Министерство","Министерство транспорта Российской Федерации","http://www.mintrans.ru/","https://www.mintrans.ru/opendata/","B"]
["Министерство","Министерство юстиции Российской Федерации","http://www.minjust.ru/","https://minjust.ru/ru/opendata_new","B"]
["Министерство","Министерство здравоохранения Российской Федерации","http://www.rosminzdrav.ru/","https://www.rosminzdrav.ru/opendata","B"]
["Министерство","Министерство экономического развития Российской Федерации","http://www.economy.gov.ru/","https://data.gov.ru/organizations/7710349494","B"]
["Министерство","Министерство обороны Российской Федерации","http://www.mil.ru/","http://mil.ru/opendata.htm (https://data.gov.ru/ministerstvo-oborony-rossiyskoy-federacii","B"]
["Министерство","Министерство спорта Российской Федерации","http://www.minsport.gov.ru","https://www.minsport.gov.ru/opendata/","B"]
["Служба или агентство","Федеральная служба по надзору в сфере образования и науки","http://obrnadzor.gov.ru/","http://obrnadzor.gov.ru/ru/open_government/open_data/","B"]
["Служба или агентство","Федеральное агентство по недропользованию","http://www.rosnedra.gov.ru/","http://www.rosnedra.gov.ru/opendata","B"]
["Служба или агентство","Федеральная служба государственной регистрации, кадастра и картографии","http://www.rosreestr.ru/","https://rosreestr.ru/wps/portal/cc_ib_opendata","B"]
["Служба или агентство","Федеральное агентство водных ресурсов","http://voda.mnr.gov.ru/","http://voda.mnr.gov.ru/opendata/index.php","B"]
["Служба или агентство","Федеральная служба по надзору в сфере защиты прав потребителей и благополучия человека","http://www.rospotrebnadzor.ru","http://opendata.rospotrebnadzor.ru/","B"]
["Служба или агентство","Федеральное агентство железнодорожного транспорта","http://www.roszeldor.ru/","http://www.roszeldor.ru/opendata","B"]
["Служба или агентство","Федеральная антимонопольная служба","http://www.fas.gov.ru/","http://fas.gov.ru/opendata/","B"]
["Служба или агентство","Федеральное агентство по техническому регулированию и метрологии","http://www.gost.ru","https://www.gost.ru/portal/gost/home/systems/opendatapp","B"]
["Служба или агентство","Федеральное казначейство","http://www.roskazna.ru/","http://www.roskazna.ru/opendata/","B"]
["Служба или агентство","Федеральное агентство по государственным резервам","http://www.rosreserv.ru/","https://www.rosreserv.ru/opendata/","B"]
["Служба или агентство","Государственная фельдъегерская служба Российской Федерации","http://gfs.gov.ru/","https://gfs.gov.ru/opendata/","B"]
["Служба или агентство","Федеральная служба по интеллектуальной собственности","http://www.rupto.ru/","https://rupto.ru/opendata","B"]
["Служба или агентство","Федеральное дорожное агентство","http://www.rosavtodor.ru/","https://rosavtodor.ru/opendata","B"]
["Служба или агентство","Федеральное медико-биологическое агентство","http://www.fmbaros.ru","http://fmbaros.ru/opendata/","B"]
["Служба или агентство","Федеральная служба по регулированию алкогольного рынка","http://fsrar.ru/","http://fsrar.ru/opendata","B"]
["Служба или агентство","Федеральное архивное агентство","http://archives.ru","http://archives.ru/opendata","B"]
["Служба или агентство","Федеральная служба по ветеринарному и фитосанитарному надзору","http://www.fsvps.ru/","http://www.fsvps.ru/opendata","B"]
["Служба или агентство","Федеральная служба по военно-техническому сотрудничеству","http://www.fsvts.gov.ru/","http://www.fsvts.gov.ru/opendata/","B"]
["Служба или агентство","Федеральное агентство по делам национальностей","http://fadn.gov.ru/","http://fadn.gov.ru/opendata","B"]
["Служба или агентство","Федеральная таможенная служба","http://www.customs.ru/","http://customs.ru/opendata","B"]
["Служба или агентство","Федеральная служба по техническому и экспортному контролю","http://www.fstec.ru/","https://data.gov.ru/federalnaya-sluzhba-po-tehnicheskomu-i-eksportnomu-kontrolyu","B"]
["Служба или агентство","Федеральная служба государственной статистики","http://www.gks.ru/","https://www.gks.ru/opendata/","B"]
["Служба или агентство","Федеральная служба по аккредитации","http://www.fsa.gov.ru/","https://fsa.gov.ru/opendata/","B"]
["Служба или агентство","Федеральная служба по гидрометеорологии и мониторингу окружающей среды","Федеральная служба по гидрометеорологии и мониторингу окружающей среды","http://www.meteorf.ru/opendata/","B"]
["Служба или агентство","Федеральное агентство по туризму","http://www.russiatourism.ru","http://opendata.russiatourism.ru/","B"]
["Служба или агентство","Федеральная служба исполнения наказаний","http://www.fsin.su/","http://www.fsin.su/opendata/","B"]
["Служба или агентство","Федеральная служба по надзору в сфере транспорта","http://www.rostransnadzor.ru/","https://rostransnadzor.ru/opendata","B"]
["Служба или агентство","Федеральная служба по экологическому, технологическому и атомному надзору","http://www.gosnadzor.ru/","http://www.gosnadzor.ru/opendata/","B"]
["Служба или агентство","Федеральная служба по надзору в сфере природопользования","http://rpn.gov.ru/","https://rpn.gov.ru/opendata/","B"]
["Служба или агентство","Федеральное агентство по печати и массовым коммуникациям","http://www.fapmc.ru/","http://www.fapmc.ru/rospechat/opendata.html","B"]
["Служба или агентство","Федеральная служба войск национальной гвардии Российской Федерации","http://www.rosgvard.ru","https://www.rosgvard.ru/ru/page/index/otkrytye-dannye","B"]
["Служба или агентство","Управление делами Президента Российской Федерации","http://www.udprf.ru/","https://udprf.ru/opendata","B"]
["Министерство","Министерство науки и высшего образования Российской Федерации","http://www.minobrnauki.gov.ru",null,"C"]
["Министерство","Министерство Российской Федерации по делам гражданской обороны, чрезвычайным ситуациям и ликвидации последствий стихийных бедствий","http://www.mchs.gov.ru/",null,"C"]
["Служба или агентство","Федеральная служба по финансовому мониторингу","http://www.fedsfm.ru/","http://www.fedsfm.ru/opendata","C"]
["Служба или агентство","Федеральное агентство по делам Содружества Независимых Государств, соотечественников, проживающих за рубежом, и по международному гуманитарному сотрудничеству","http://rs.gov.ru","http://rs.gov.ru/opendata","C"]
["Служба или агентство","Федеральное агентство морского и речного транспорта","http://www.morflot.ru/","http://www.morflot.ru/glavnaya/otkryitoe_agentstvo/opendata.html","C"]
["Служба или агентство","Главное управление специальных программ Президента Российской Федерации","http://www.gusp.gov.ru/",null,"C"]
["Служба или агентство","Служба внешней разведки Российской Федерации","http://svr.gov.ru/",null,"C"]
["Служба или агентство","Федеральная пробирная палата","http://www.probpalata.ru/rgpp/",null,"C"]
["Служба или агентство","Федеральная служба безопасности Российской Федерации","http://www.fsb.ru/",null,"C"]
["Служба или агентство","Федеральная служба охраны Российской Федерации","http://www.fso.gov.ru/",null,"C"]
["Служба или агентство","Федеральное агентство по рыболовству","http://www.fish.gov.ru/","http://www.fish.gov.ru/opendata","C"]

{"sheet":"Результат","index":1,"n_rows":73,"n_cols":9,"rows_kept":73,"cut":false,"hidden":false,"merged":[]}
["Ведомство","Сайт","Раздел ОД","Балл 1 раунда","Балл 2 раунда","Суммарный балл","Максимальный общий балл","Суммарный процент"]
["Министерство Российской Федерации по развитию Дальнего Востока и Арктики","http://minvr.ru/","https://minvr.ru/opendata/",71,73,{"$f":"D2+E2","v":144},{"$f":"77*2","v":154},{"$f":"F2/G2","v":0.93506493506493504},"A"]
["Министерство финансов Российской Федерации","http://www.minfin.ru/","https://www.minfin.ru/opendata/",72,72,144,154,0.93506493506493504,"A"]
["Федеральная налоговая служба","http://www.nalog.ru/","https://www.nalog.ru/opendata/",69,71,140,154,0.90909090909090906,"A"]
["Федеральная служба судебных приставов","http://www.fssprus.ru/","http://opendata.fssprus.ru/",69,70,139,154,0.90259740259740262,"A"]
["Федеральное агентство воздушного транспорта","http://www.favt.ru/","https://favt.ru/opendata/",70,69,139,154,0.90259740259740262,"A"]
["Министерство просвещения Российской Федерации","http://edu.gov.ru","https://opendata.edu.gov.ru/opendata/",67,71,138,154,0.89610389610389607,"A"]
["Федеральная служба по надзору в сфере здравоохранения","http://www.roszdravnadzor.ru","https://www.roszdravnadzor.ru/opendata",68,70,138,154,0.89610389610389607,"A"]
["Министерство энергетики Российской Федерации","http://minenergo.gov.ru/","https://minenergo.gov.ru/opendata",68,68,136,154,0.88311688311688308,"A"]
["Федеральное агентство по управлению государственным имуществом","http://www.rosim.ru/","http://www.rosim.ru/opendata",67,69,136,154,0.88311688311688308,"A"]
["Федеральная служба по труду и занятости","http://www.rostrud.ru/","https://www.rostrud.ru/opendata/",64,71,135,154,0.87662337662337664,"A"]
["Федеральное агентство лесного хозяйства","http://rosleshoz.gov.ru/","http://rosleshoz.gov.ru/opendata",65,68,133,154,0.86363636363636365,"A"]
["Министерство промышленности и торговли Российской Федерации","http://www.minpromtorg.gov.ru/","http://minpromtorg.gov.ru/opendata/",67,63,130,154,0.8441558441558441,"A"]
["Федеральная служба по надзору в сфере связи, информационных технологий и массовых коммуникаций","http://rkn.gov.ru/","https://rkn.gov.ru/opendata/",60,69,129,154,0.83766233766233766,"A"]
["Министерство внутренних дел Российской Федерации","http://www.mvd.ru","https://мвд.рф/opendata",59,69,128,154,0.83116883116883122,"A"]
["Министерство культуры Российской Федерации","http://www.mkrf.ru/","https://opendata.mkrf.ru/opendata",61,65,126,154,0.81818181818181823,"A"]
["Министерство природных ресурсов и экологии Российской Федерации","http://www.mnr.gov.ru/","http://www.mnr.gov.ru/opendata/",66,60,126,154,0.81818181818181823,"A"]
["Федеральное агентство связи","http://www.rossvyaz.ru/","https://rossvyaz.ru/about/otkrytoe-pravitelstvo/otkrytye-dannee/reestr-otkrytykh-dannykh",59,67,126,154,0.81818181818181823,"A"]
["Федеральное агентство по делам молодёжи","http://fadm.gov.ru","https://fadm.gov.ru/opendata",64,60,124,154,0.80519480519480524,"A"]
["Министерство строительства и жилищно-коммунального хозяйства Российской Федерации","http://www.minstroyrf.ru/","https://www.minstroyrf.ru/opendata/",61,62,123,154,0.79870129870129869,"B"]
["Министерство цифрового развития, связи и массовых коммуникаций Российской Федерации","http://www.minsvyaz.ru/","https://digital.gov.ru/opendata/",68,55,123,154,0.79870129870129869,"B"]
["Федеральная служба по надзору в сфере образования и науки","http://obrnadzor.gov.ru/","http://obrnadzor.gov.ru/ru/open_government/open_data/",67,55,122,154,0.79220779220779225,"B"]
["Федеральное агентство по недропользованию","http://www.rosnedra.gov.ru/","http://www.rosnedra.gov.ru/opendata",66,56,122,154,0.79220779220779225,"B"]
["Федеральная служба государственной регистрации, кадастра и картографии","http://www.rosreestr.ru/","https://rosreestr.ru/wps/portal/cc_ib_opendata",62,58,120,154,0.77922077922077926,"B"]
["Федеральное агентство водных ресурсов","http://voda.mnr.gov.ru/","http://voda.mnr.gov.ru/opendata/index.php",63,57,120,154,0.77922077922077926,"B"]
["Федеральная служба по надзору в сфере защиты прав потребителей и благополучия человека","http://www.rospotrebnadzor.ru","http://opendata.rospotrebnadzor.ru/",67,51,118,154,0.76623376623376627,"B"]
["Министерство сельского хозяйства Российской Федерации","http://www.mcx.ru/","http://mcx.ru/activity/open-data/",59,57,116,154,0.75324675324675328,"B"]
["Федеральное агентство железнодорожного транспорта","http://www.roszeldor.ru/","http://www.roszeldor.ru/opendata",60,56,116,154,0.75324675324675328,"B"]
["Министерство труда и социальной защиты Российской Федерации","http://www.rosmintrud.ru","https://rosmintrud.ru/opendata",62,53,115,154,0.74675324675324672,"B"]
["Федеральная антимонопольная служба","http://www.fas.gov.ru/","http://fas.gov.ru/opendata/",63,52,115,154,0.74675324675324672,"B"]
["Федеральное агентство по техническому регулированию и метрологии","http://www.gost.ru","https://www.gost.ru/portal/gost/home/systems/opendatapp",61,54,115,154,0.74675324675324672,"B"]
["Федеральное казначейство","http://www.roskazna.ru/","http://www.roskazna.ru/opendata/",61,54,115,154,0.74675324675324672,"B"]
["Федеральное агентство по государственным резервам","http://www.rosreserv.ru/","https://www.rosreserv.ru/opendata/",62,52,114,154,0.74025974025974028,"B"]
["Государственная фельдъегерская служба Российской Федерации","http://gfs.gov.ru/","https://gfs.gov.ru/opendata/",64,49,113,154,0.73376623376623373,"B"]
["Федеральная служба по интеллектуальной собственности","http://www.rupto.ru/","https://rupto.ru/opendata",57,56,113,154,0.73376623376623373,"B"]
["Федеральное дорожное агентство","http://www.rosavtodor.ru/","https://rosavtodor.ru/opendata",57,56,113,154,0.73376623376623373,"B"]
["Федеральное медико-биологическое агентство","http://www.fmbaros.ru","http://fmbaros.ru/opendata/",62,51,113,154,0.73376623376623373,"B"]
["Федеральная служба по регулированию алкогольного рынка","http://fsrar.ru/","http://fsrar.ru/opendata",53,59,112,154,0.72727272727272729,"B"]
["Федеральное архивное агентство","http://archives.ru","http://archives.ru/opendata",53,59,112,154,0.72727272727272729,"B"]
["Федеральная служба по ветеринарному и фитосанитарному надзору","http://www.fsvps.ru/","http://www.fsvps.ru/opendata",46,65,111,154,0.72077922077922074,"B"]
["Федеральная служба по военно-техническому сотрудничеству","http://www.fsvts.gov.ru/","http://www.fsvts.gov.ru/opendata/",52,59,111,154,0.72077922077922074,"B"]
["Федеральное агентство по делам национальностей","http://fadn.gov.ru/","http://fadn.gov.ru/opendata",63,48,111,154,0.72077922077922074,"B"]
["Федеральная таможенная служба","http://www.customs.ru/","http://customs.ru/opendata",47,63,110,154,0.7142857142857143,"B"]
["Министерство иностранных дел Российской Федерации","http://www.mid.ru/","https://www.mid.ru/diverse/-/asset_publisher/8bWtTfQKqtaS/content/id/680111",48,61,109,154,0.70779220779220775,"B"]
["Федеральная служба по техническому и экспортному контролю","http://www.fstec.ru/","https://data.gov.ru/federalnaya-sluzhba-po-tehnicheskomu-i-eksportnomu-kontrolyu",55,54,109,154,0.70779220779220775,"B"]
["Министерство транспорта Российской Федерации","http://www.mintrans.ru/","https://www.mintrans.ru/opendata/",53,53,106,154,0.68831168831168832,"B"]
["Федеральная служба государственной статистики","http://www.gks.ru/","https://www.gks.ru/opendata/",54,52,106,154,0.68831168831168832,"B"]
["Федеральная служба по аккредитации","http://www.fsa.gov.ru/","https://fsa.gov.ru/opendata/",49,57,106,154,0.68831168831168832,"B"]
["Министерство юстиции Российской Федерации","http://www.minjust.ru/","https://minjust.ru/ru/opendata_new",52,53,105,154,0.68181818181818177,"B"]
["Федеральная служба по гидрометеорологии и мониторингу окружающей среды","Федеральная служба по гидрометеорологии и мониторингу окружающей среды","http://www.meteorf.ru/opendata/",51,54,105,154,0.68181818181818177,"B"]
["Федеральное агентство по туризму","http://www.russiatourism.ru","http://opendata.russiatourism.ru/",53,52,105,154,0.68181818181818177,"B"]
["Министерство здравоохранения Российской Федерации","http://www.rosminzdrav.ru/","https://www.rosminzdrav.ru/opendata",52,52,104,154,0.67532467532467533,"B"]
["Федеральная служба исполнения наказаний","http://www.fsin.su/","http://www.fsin.su/opendata/",52,52,104,154,0.67532467532467533,"B"]
["Министерство экономического развития Российской Федерации","http://www.economy.gov.ru/","https://data.gov.ru/organizations/7710349494",49,51,100,154,0.64935064935064934,"B"]
["Федеральная служба по надзору в сфере транспорта","http://www.rostransnadzor.ru/","https://rostransnadzor.ru/opendata",51,49,100,154,0.64935064935064934,"B"]
["Федеральная служба по экологическому, технологическому и атомному надзору","http://www.gosnadzor.ru/","http://www.gosnadzor.ru/opendata/",50,50,100,154,0.64935064935064934,"B"]
["Министерство обороны Российской Федерации","http://www.mil.ru/","http://mil.ru/opendata.htm (https://data.gov.ru/ministerstvo-oborony-rossiyskoy-federacii",48,50,98,154,0.63636363636363635,"B"]
["Федеральная служба по надзору в сфере природопользования","http://rpn.gov.ru/","https://rpn.gov.ru/opendata/",50,48,98,154,0.63636363636363635,"B"]
["Федеральное агентство по печати и массовым коммуникациям","http://www.fapmc.ru/","http://www.fapmc.ru/rospechat/opendata.html",53,45,98,154,0.63636363636363635,"B"]
["Федеральная служба войск национальной гвардии Российской Федерации","http://www.rosgvard.ru","https://www.rosgvard.ru/ru/page/index/otkrytye-dannye",48,47,95,154,0.61688311688311692,"B"]
["Министерство спорта Российской Федерации","http://www.minsport.gov.ru","https://www.minsport.gov.ru/opendata/",47,47,94,154,0.61038961038961037,"B"]
["Управление делами Президента Российской Федерации","http://www.udprf.ru/","https://udprf.ru/opendata",47,36,83,154,0.53896103896103897,"B"]
["Федеральная служба по финансовому мониторингу","http://www.fedsfm.ru/","http://www.fedsfm.ru/opendata",34,36,70,154,0.45454545454545453,"C"]
["Федеральное агентство по делам Содружества Независимых Государств, соотечественников, проживающих за рубежом, и по международному гуманитарному сотрудничеству","http://rs.gov.ru","http://rs.gov.ru/opendata",9,11,20,154,0.12987012987012986,"C"]
["Федеральное агентство морского и речного транспорта","http://www.morflot.ru/","http://www.morflot.ru/glavnaya/otkryitoe_agentstvo/opendata.html",5,0,5,154,3.2467532467532464E-2,"C"]
["Главное управление специальных программ Президента Российской Федерации","http://www.gusp.gov.ru/",null,0,0,0,154,0,"C"]
["Министерство науки и высшего образования Российской Федерации","http://www.minobrnauki.gov.ru",null,0,0,0,154,0,"C"]
["Министерство Российской Федерации по делам гражданской обороны, чрезвычайным ситуациям и ликвидации последствий стихийных бедствий","http://www.mchs.gov.ru/",null,0,0,0,154,0,"C"]
["Служба внешней разведки Российской Федерации","http://svr.gov.ru/",null,0,0,0,154,0,"C"]
["Федеральная пробирная палата","http://www.probpalata.ru/rgpp/",null,0,0,0,154,0,"C"]
["Федеральная служба безопасности Российской Федерации","http://www.fsb.ru/",null,0,0,0,154,0,"C"]
["Федеральная служба охраны Российской Федерации","http://www.fso.gov.ru/",null,0,0,0,154,0,"C"]
["Федеральное агентство по рыболовству","http://www.fish.gov.ru/","http://www.fish.gov.ru/opendata",0,0,0,154,0,"C"]